[Event "Championnat du monde jeunes U10"]
[Date "2024.11.15"]
[White "Larion, Iustin"]
[Black "Grimm, Jakob"]
[WhiteElo "1925"]
[BlackElo "1646"]
[Round "1.25"]
[Result "1-0"]
[TimeControl "5400+30"]

1. d4 {[%clk 1:30:30]} 1... d5 {[%clk 1:30:50]} 2. c4 {[%clk 1:30:54]} 2... e6
{[%clk 1:31:14]} 3. Nf3 {[%clk 1:31:18]} 3... Nf6 {[%clk 1:31:39]} 4. Nc3 {[%clk
1:31:16]} 4... Be7 {[%clk 1:31:59]} 5. Bg5 {[%clk 1:31:09]} 5... O-O {[%clk
1:32:20]} 6. e3 {[%clk 1:30:54]} 6... b6 {[%clk 1:29:48]} 7. cxd5 {[%clk
1:26:32]} 7... exd5 {[%clk 1:29:25]} 8. Bd3 {[%clk 1:24:23]} 8... Bb7 {[%clk
1:29:04]} 9. O-O {[%clk 1:24:12]} 9... Ne4 {[%clk 1:29:22]} 10. Bxe7 {[%clk
1:20:59]} 10... Qxe7 {[%clk 1:28:44]} 11. Qc2 {[%clk 1:15:16]} 11... Nd7 {[%clk
1:27:54]} 12. Ne2 {[%clk 1:11:38]} 12... Ndf6 {[%clk 1:27:44]} 13. Ng3 {[%clk
1:10:33]} 13... Rac8 {[%clk 1:27:46]} 14. Qe2 {[%clk 1:08:00]} 14... c5 {[%clk
1:27:12]} 15. dxc5 {[%clk 1:06:19]} 15... bxc5 {[%clk 1:27:27]} 16. Rac1 {[%clk
1:03:31]} 16... c4 {[%clk 1:26:46]} 17. Bxe4 {[%clk 1:03:06]} 17... Nxe4 {[%clk
1:25:21]} 18. Nxe4 {[%clk 1:00:55]} 18... Qxe4 {[%clk 1:25:44]} 19. Rfd1 {[%clk
1:00:23]} 19... Rfd8 {[%clk 1:23:25]} 20. Rd4 {[%clk 0:59:32]} 20... Qg6 {[%clk
1:22:00]} 21. h3 {[%clk 0:54:16]} 21... Re8 {[%clk 1:16:54]} 22. Qd2 {[%clk
0:51:12]} 22... Re4 {[%clk 1:16:42]} 23. Qb4 {[%clk 0:40:52]} 23... Bc6 {[%clk
1:15:33]} 24. b3 {[%clk 0:36:39]} 24... cxb3 {[%clk 1:14:19]} 25. Rxe4 {[%clk
0:36:06]} 25... dxe4 {[%clk 1:13:37]} 26. Ne5 {[%clk 0:36:27]} 26... Qe6 {[%clk
1:07:06]} 27. Nxc6 {[%clk 0:36:18]} 27... bxa2 {[%clk 1:06:43]} 28. Ne7+ {[%clk
0:36:26]} 28... Kh8 {[%clk 1:07:02]} 29. Nxc8 {[%clk 0:36:45]} 29... Qe8 {[%clk
1:05:56]} 30. Qe7 {[%clk 0:36:37]} 30... Qg8 {[%clk 1:06:17]} 31. Nd6 {[%clk
0:36:58]} 31... a1=R {[%clk 1:06:21]} 32. Rxa1 {[%clk 0:37:02]} 32... a5 {[%clk
1:06:48]} 33. Nxf7+ {[%clk 0:37:17]} 33... Qxf7 {[%clk 1:07:16]} 34. Qxf7 {[%clk
0:37:30]} 1-0

[Variant "Standard"]
[Site "Europe Echecs"]

[Event "Championnat du monde jeunes U10"]
[Date "2024.11.15"]
[White "Gomez Silva, Maximiliano"]
[Black "Ejsymont, Eryk"]
[WhiteElo "1643"]
[BlackElo "1910"]
[Round "1.26"]
[Result "0-1"]
[TimeControl "5400+30"]

1. d4 {[%clk 1:30:21]} 1... Nf6 {[%clk 1:30:49]} 2. Nf3 {[%clk 1:29:58]} 2... d5
{[%clk 1:30:54]} 3. g3 {[%clk 1:29:17]} 3... e6 {[%clk 1:30:53]} 4. Bg2 {[%clk
1:28:46]} 4... Be7 {[%clk 1:30:45]} 5. O-O {[%clk 1:28:18]} 5... O-O {[%clk
1:29:43]} 6. c4 {[%clk 1:27:48]} 6... dxc4 {[%clk 1:28:12]} 7. Qc2 {[%clk
1:26:39]} 7... a6 {[%clk 1:27:15]} 8. a4 {[%clk 1:23:35]} 8... Nbd7 {[%clk
1:15:35]} 9. Qxc4 {[%clk 1:14:30]} 9... b5 {[%clk 1:10:15]} 10. Qc6 Rb8 {[%clk
1:09:35]} 11. Bf4 {[%clk 1:03:53]} 11... Nd5 {[%clk 1:07:44]} 12. Be5 {[%clk
0:52:19]} 12... Nc5 {[%clk 0:58:03]} 13. dxc5 {[%clk 0:45:27]} 13... Bb7 {[%clk
0:57:35]} 14. Nd4 {[%clk 0:42:38]} 14... Bxc6 {[%clk 0:55:17]} 15. Nxc6 {[%clk
0:43:07]} 15... Qd7 {[%clk 0:54:26]} 16. Nxb8 Rxb8 {[%clk 0:54:30]} 17. Rd1
{[%clk 0:35:22]} 17... Qe8 {[%clk 0:51:14]} 18. axb5 {[%clk 0:24:53]} 18... Qxb5
{[%clk 0:47:32]} 19. Na3 {[%clk 0:19:53]} 19... Qxe2 {[%clk 0:44:42]} 20. Re1
{[%clk 0:14:33]} 20... Qd3 {[%clk 0:37:19]} 21. Rad1 {[%clk 0:13:17]} 21... Qf5
{[%clk 0:31:46]} 22. Bxd5 {[%clk 0:10:37]} 22... exd5 {[%clk 0:18:48]} 23. Rxd5
{[%clk 0:05:06]} 23... Qf3 {[%clk 0:12:56]} 24. Red1 {[%clk 0:02:44]} 24... Re8
{[%clk 0:12:25]} 25. R1d3 {[%clk 0:01:12]} 25... Qe4 {[%clk 0:12:09]} 26. c6 Bc5
{[%clk 0:03:53]} 27. Rd2 {[%clk 0:00:34]} 27... Rxe5 {[%clk 0:00:54]} 28. Rxc5
{[%clk 0:00:53]} 28... Qe1+ 29. Kg2 Qxd2 {[%clk 0:00:53]} 30. Rxe5 {[%clk
0:01:51]} 30... Kf8 {[%clk 0:01:22]} 31. Nc4 {[%clk 0:01:35]} 31... Qd4 {[%clk
0:01:20]} 32. b3 {[%clk 0:01:37]} 32... f6 {[%clk 0:01:43]} 33. Ra5 {[%clk
0:01:37]} 33... Qe4+ {[%clk 0:02:01]} 34. Kf1 {[%clk 0:01:09]} 34... Qb1+ {[%clk
0:02:13]} 35. Kg2 {[%clk 0:01:37]} 35... Qxb3 {[%clk 0:02:32]} 36. Rc5 {[%clk
0:01:38]} 36... Qb4 {[%clk 0:02:51]} 37. Rd5 {[%clk 0:01:49]} 37... Qxc4 {[%clk
0:03:04]} 38. Rd8+ {[%clk 0:02:15]} 38... Ke7 {[%clk 0:03:06]} 39. Rd7+ {[%clk
0:02:43]} 39... Ke6 {[%clk 0:03:11]} 40. Rxc7 {[%clk 0:02:53]} 40... Kd6 {[%clk
0:03:25]} 41. Rc8 {[%clk 0:03:22]} 41... a5 {[%clk 0:03:43]} 42. Rd8+ {[%clk
0:03:34]} 42... Kxc6 {[%clk 0:03:41]} 43. Rc8+ {[%clk 0:04:00]} 43... Kb5 {[%clk
0:03:59]} 0-1

[Variant "Standard"]
[Site "Europe Echecs"]

[Event "Championnat du monde jeunes U10"]
[Date "2024.11.15"]
[White "Mutyalapati, Modith Aaroh"]
[Black "Vedrickas, Vytis"]
[WhiteElo "1893"]
[BlackElo "1642"]
[Round "1.27"]
[Result "1-0"]
[TimeControl "5400+30"]

1. e4 {[%clk 1:30:53]} 1... c5 {[%clk 1:30:40]} 2. Nf3 {[%clk 1:31:21]} 2... g6
{[%clk 1:30:58]} 3. d4 {[%clk 1:31:43]} 3... cxd4 {[%clk 1:31:20]} 4. Qxd4
{[%clk 1:32:08]} 4... Nf6 {[%clk 1:31:41]} 5. Nc3 {[%clk 1:32:33]} 5... Nc6
{[%clk 1:31:57]} 6. Qa4 {[%clk 1:32:58]} 6... d6 {[%clk 1:32:20]} 7. e5 {[%clk
1:33:16]} 7... dxe5 {[%clk 1:32:42]} 8. Nxe5 {[%clk 1:33:41]} 8... Qd4 {[%clk
1:33:06]} 9. Nxc6 {[%clk 1:33:45]} 9... Qxa4 {[%clk 1:33:22]} 10. Nxa4 {[%clk
1:34:06]} 10... bxc6 {[%clk 1:33:47]} 11. Be3 {[%clk 1:34:05]} 11... Bg7 {[%clk
1:34:03]} 12. Bd4 {[%clk 1:32:58]} 12... O-O {[%clk 1:34:03]} 13. Bc4 {[%clk
1:32:56]} 13... Bf5 {[%clk 1:32:45]} 14. O-O-O {[%clk 1:32:58]} 14... Rfe8
{[%clk 1:29:41]} 15. Rhe1 {[%clk 1:30:30]} 15... Rad8 {[%clk 1:26:47]} 16. f3
{[%clk 1:29:13]} 16... Bh6+ {[%clk 1:17:03]} 17. Kb1 {[%clk 1:28:30]} 17... e5
{[%clk 1:17:06]} 18. Bc3 {[%clk 1:28:55]} 18... Bg7 {[%clk 1:15:23]} 19. Rxd8
{[%clk 1:28:27]} 19... Rxd8 {[%clk 1:13:31]} 20. g4 {[%clk 1:28:51]} 20... Bc8
{[%clk 1:09:32]} 21. Bxe5 {[%clk 1:28:49]} 21... Bb7 {[%clk 1:08:47]} 22. Nc5
{[%clk 1:27:57]} 22... Ba8 {[%clk 1:08:32]} 23. a3 {[%clk 1:28:10]} 23... Nd5
{[%clk 1:04:55]} 24. Bxg7 {[%clk 1:23:37]} 24... Kxg7 {[%clk 1:05:11]} 25. Bxd5
{[%clk 1:23:57]} 25... cxd5 {[%clk 1:05:15]} 26. Re7 {[%clk 1:24:05]} 26... d4
{[%clk 1:03:21]} 27. Rxa7 {[%clk 1:24:25]} 27... Bd5 {[%clk 0:59:47]} 28. f4
{[%clk 1:24:30]} 28... h6 {[%clk 0:59:42]} 29. b4 {[%clk 1:24:41]} 29... Rc8
{[%clk 0:59:20]} 30. Rd7 {[%clk 1:25:00]} 30... Bf3 {[%clk 0:58:42]} 31. g5
{[%clk 1:24:34]} 31... h5 {[%clk 0:58:27]} 32. Ne6+ {[%clk 1:24:08]} 32... Kg8
{[%clk 0:58:23]} 33. Rd8+ {[%clk 1:24:34]} 33... Rxd8 {[%clk 0:58:20]} 34. Nxd8
{[%clk 1:25:03]} 34... Kf8 {[%clk 0:58:39]} 35. b5 {[%clk 1:25:29]} 35... Ke7
{[%clk 0:58:10]} 36. Nc6+ {[%clk 1:25:57]} 36... Kd6 {[%clk 0:57:56]} 37. Nxd4
{[%clk 1:26:22]} 37... Be4 {[%clk 0:58:13]} 38. a4 {[%clk 1:26:47]} 38... Kd5
{[%clk 0:58:05]} 39. Nc6 {[%clk 1:27:06]} 39... Kc5 {[%clk 0:57:59]} 40. Ne5
{[%clk 1:27:31]} 40... Kb4 {[%clk 0:57:56]} 41. Nxf7 {[%clk 1:27:57]} 41... Kxa4
{[%clk 0:57:54]} 42. b6 {[%clk 1:28:16]} 42... Ka5 {[%clk 0:57:52]} 43. Nd6
{[%clk 1:28:41]} 43... Bd5 {[%clk 0:57:57]} 44. b7 {[%clk 1:29:10]} 1-0

[Variant "Standard"]
[Site "Europe Echecs"]

[Event "Championnat du monde jeunes U10"]
[Date "2024.11.15"]
[White "Qian, Qipeng"]
[Black "Nguyen Quang Anh"]
[WhiteElo "1641"]
[BlackElo "1889"]
[Round "1.28"]
[Result "0-1"]
[TimeControl "5400+30"]

1. d4 {[%clk 1:30:58]} 1... c5 {[%clk 1:30:40]} 2. d5 {[%clk 1:31:24]} 2... e6
{[%clk 1:30:52]} 3. c4 {[%clk 1:31:50]} 3... Nf6 {[%clk 1:31:02]} 4. Nc3 {[%clk
1:32:13]} 4... exd5 {[%clk 1:31:10]} 5. cxd5 {[%clk 1:32:38]} 5... d6 {[%clk
1:30:52]} 6. e4 {[%clk 1:33:03]} 6... g6 {[%clk 1:30:56]} 7. f4 {[%clk 1:33:29]}
7... Bg7 {[%clk 1:30:41]} 8. Bb5+ {[%clk 1:33:54]} 8... Nfd7 {[%clk 1:30:35]} 9.
a4 {[%clk 1:34:17]} 9... O-O {[%clk 1:30:01]} 10. Nf3 {[%clk 1:34:04]} 10... Na6
{[%clk 1:29:14]} 11. O-O Nc7 {[%clk 1:28:35]} 12. Bd3 {[%clk 1:34:10]} 12... Rb8
{[%clk 1:27:07]} 13. Re1 {[%clk 1:30:30]} 13... Re8 {[%clk 1:26:48]} 14. Nb5
{[%clk 1:22:18]} 14... Nxb5 {[%clk 1:22:01]} 15. axb5 {[%clk 1:22:41]} 15... Qb6
{[%clk 1:20:01]} 16. Kh1 {[%clk 1:21:53]} 16... Nf6 {[%clk 1:15:14]} 17. h3
{[%clk 1:19:36]} 17... c4 {[%clk 1:06:50]} 18. Bxc4 {[%clk 1:10:08]} 18... Nxe4
{[%clk 1:05:46]} 19. Be3 {[%clk 0:47:01]} 19... Ng3+ {[%clk 1:03:56]} 20. Kh2
{[%clk 0:47:29]} 20... Rxe3 {[%clk 1:04:15]} 21. Rxe3 {[%clk 0:47:46]} 21...
Qxe3 {[%clk 1:02:54]} 22. Kxg3 {[%clk 0:48:13]} 22... g5 {[%clk 0:52:27]} 23.
Qd2 {[%clk 0:46:27]} 23... gxf4+ {[%clk 0:49:11]} 24. Kh2 {[%clk 0:46:53]} 24...
Bf5 {[%clk 0:48:49]} 25. Qa5 {[%clk 0:41:46]} 25... Qf2 {[%clk 0:44:04]} 26.
Qxa7 {[%clk 0:41:44]} 26... Qg3+ {[%clk 0:43:46]} 27. Kh1 {[%clk 0:40:43]} 27...
Rc8 {[%clk 0:43:28]} 28. Be2 {[%clk 0:40:35]} 28... Re8 {[%clk 0:39:44]} 29. Bf1
{[%clk 0:38:15]} 29... Bxh3 {[%clk 0:33:35]} 30. Qxb7 {[%clk 0:37:09]} 30... Re2
{[%clk 0:30:09]} 31. Nh4 {[%clk 0:35:07]} 31... Bxg2+ {[%clk 0:29:16]} 32. Nxg2
{[%clk 0:35:25]} 32... Qh3+ {[%clk 0:29:38]} 33. Kg1 {[%clk 0:34:08]} 33... Bd4+
{[%clk 0:29:30]} 34. Ne3 {[%clk 0:31:12]} 34... Bxe3# {[%clk 0:29:49]} 0-1

[Variant "Standard"]
[Site "Europe Echecs"]

[Event "Championnat du monde jeunes U10"]
[Date "2024.11.15"]
[White "Meitzner, Jonathan Franz"]
[Black "Otetileu, Amanbek"]
[WhiteElo "1876"]
[BlackElo "1632"]
[Round "1.29"]
[Result "1/2-1/2"]
[TimeControl "5400+30"]

1. e4 {[%clk 1:30:56]} 1... c5 {[%clk 1:30:55]} 2. Nf3 {[%clk 1:31:20]} 2... d6
{[%clk 1:29:28]} 3. d4 {[%clk 1:31:44]} 3... cxd4 {[%clk 1:29:45]} 4. Nxd4
{[%clk 1:32:09]} 4... Nf6 {[%clk 1:29:57]} 5. f3 {[%clk 1:32:33]} 5... Nc6
{[%clk 1:30:00]} 6. c4 {[%clk 1:30:32]} 6... g6 {[%clk 1:30:06]} 7. Nc3 {[%clk
1:30:12]} 7... Bg7 {[%clk 1:30:03]} 8. Nc2 {[%clk 1:26:02]} 8... O-O {[%clk
1:29:28]} 9. Be3 {[%clk 1:26:12]} 9... Be6 {[%clk 1:29:21]} 10. Be2 {[%clk
1:25:48]} 10... Nd7 {[%clk 1:24:55]} 11. O-O {[%clk 1:21:47]} 11... Nb6 {[%clk
1:23:30]} 12. Na3 {[%clk 1:05:41]} 12... Na5 {[%clk 1:22:40]} 13. c5 {[%clk
1:04:16]} 13... Nbc4 {[%clk 1:17:35]} 14. Nxc4 {[%clk 0:56:20]} 14... Nxc4
{[%clk 1:17:56]} 15. Bxc4 {[%clk 0:55:49]} 15... Bxc4 {[%clk 1:18:24]} 16. Re1
{[%clk 0:55:39]} 16... dxc5 {[%clk 1:18:12]} 17. Qxd8 {[%clk 0:53:16]} 17...
Rfxd8 {[%clk 1:18:16]} 18. Bxc5 {[%clk 0:52:29]} 18... Rd2 {[%clk 1:18:00]} 19.
Rab1 {[%clk 0:51:33]} 19... e6 {[%clk 1:17:57]} 20. Red1 {[%clk 0:50:51]} 20...
Rad8 {[%clk 1:16:51]} 21. Rxd2 {[%clk 0:44:25]} 21... Rxd2 {[%clk 1:17:17]} 22.
Be3 {[%clk 0:43:53]} 22... Rc2 {[%clk 1:10:37]} 23. Bxa7 {[%clk 0:42:24]} 23...
b5 {[%clk 1:10:20]} 24. a3 {[%clk 0:32:42]} 24... Bxc3 {[%clk 1:05:59]} 25. bxc3
{[%clk 0:32:48]} 1/2-1/2

[Variant "Standard"]
[Site "Europe Echecs"]

[Event "Championnat du monde jeunes U10"]
[Date "2024.11.15"]
[White "Hochman, Gur"]
[Black "Mrozowski, Nikodem"]
[WhiteElo "1626"]
[BlackElo "1874"]
[Round "1.30"]
[Result "0-1"]
[TimeControl "5400+30"]

1. e4 {[%clk 1:30:57]} 1... c5 {[%clk 1:30:56]} 2. Nc3 {[%clk 1:31:22]} 2... Nc6
{[%clk 1:31:22]} 3. f4 {[%clk 1:31:43]} 3... g6 {[%clk 1:31:45]} 4. Nf3 {[%clk
1:32:04]} 4... Bg7 {[%clk 1:32:10]} 5. Bb5 {[%clk 1:32:18]} 5... Nd4 {[%clk
1:32:30]} 6. Bd3 {[%clk 1:32:39]} 6... e6 {[%clk 1:31:44]} 7. Nxd4 {[%clk
1:32:47]} 7... cxd4 {[%clk 1:31:51]} 8. Ne2 {[%clk 1:31:55]} 8... Ne7 {[%clk
1:31:39]} 9. O-O {[%clk 1:31:52]} 9... O-O {[%clk 1:31:12]} 10. c3 {[%clk
1:31:47]} 10... dxc3 {[%clk 1:31:25]} 11. bxc3 {[%clk 1:28:35]} 11... b6 {[%clk
1:30:27]} 12. Bc2 {[%clk 1:27:51]} 12... Ba6 {[%clk 1:30:01]} 13. d4 {[%clk
1:27:20]} 13... Rc8 {[%clk 1:28:50]} 14. Bd2 {[%clk 1:26:33]} 14... d5 {[%clk
1:27:55]} 15. e5 {[%clk 1:19:14]} 15... Qd7 {[%clk 1:27:03]} 16. Rf2 {[%clk
1:17:41]} 16... Rc7 {[%clk 1:26:08]} 17. g4 {[%clk 1:17:08]} 17... Rfc8 {[%clk
1:24:59]} 18. Ng3 {[%clk 1:16:12]} 18... Nc6 {[%clk 1:22:33]} 19. f5 {[%clk
1:11:27]} 19... Nxd4 {[%clk 1:20:43]} 20. cxd4 {[%clk 1:09:42]} 20... Rxc2
{[%clk 1:20:59]} 21. f6 {[%clk 1:09:52]} 21... Bf8 {[%clk 1:21:12]} 22. Be3
{[%clk 1:08:37]} 22... R2c3 {[%clk 1:21:08]} 23. Qd2 {[%clk 1:07:09]} 23... Rd3
{[%clk 1:20:51]} 24. Qe1 {[%clk 1:07:24]} 24... Qa4 {[%clk 1:20:55]} 25. Rc1
{[%clk 1:06:16]} 25... Rxc1 {[%clk 1:20:10]} 0-1

[Variant "Standard"]
[Site "Europe Echecs"]

[Event "Championnat du monde jeunes U10"]
[Date "2024.11.15"]
[White "Zabelin, Platon"]
[Black "Radovic, Koca"]
[WhiteElo "1870"]
[BlackElo "1626"]
[Round "1.31"]
[Result "1-0"]
[TimeControl "5400+30"]

1. d4 {[%clk 1:30:57]} 1... Nf6 {[%clk 1:30:55]} 2. Bg5 {[%clk 1:31:24]} 2...
Ne4 {[%clk 1:27:55]} 3. Bf4 {[%clk 1:31:50]} 3... d5 {[%clk 1:23:58]} 4. e3 Nc6
{[%clk 1:17:23]} 5. Bd3 {[%clk 1:28:19]} 5... Nf6 {[%clk 1:10:20]} 6. Nf3 {[%clk
1:26:45]} 6... a6 {[%clk 1:05:25]} 7. h3 {[%clk 1:26:47]} 7... Nb4 {[%clk
1:03:38]} 8. O-O {[%clk 1:22:57]} 8... e6 {[%clk 1:01:22]} 9. Be2 {[%clk
1:22:00]} 9... Be7 {[%clk 1:00:15]} 10. Nbd2 {[%clk 1:20:07]} 10... O-O {[%clk
0:56:54]} 11. a3 {[%clk 1:16:48]} 11... Nc6 {[%clk 0:56:53]} 12. c4 {[%clk
1:16:28]} 12... dxc4 {[%clk 0:46:17]} 13. Nxc4 {[%clk 1:15:37]} 13... b5 {[%clk
0:44:42]} 14. Nce5 {[%clk 1:15:52]} 14... Nxe5 {[%clk 0:43:41]} 15. Nxe5 {[%clk
1:16:07]} 15... Bb7 {[%clk 0:39:39]} 16. Rc1 {[%clk 1:15:58]} 16... Nd5 {[%clk
0:38:32]} 17. Bh2 {[%clk 1:14:53]} 17... Bg5 {[%clk 0:36:19]} 18. Nc6 {[%clk
1:13:06]} 18... Bxc6 {[%clk 0:32:18]} 19. Rxc6 {[%clk 1:13:23]} 19... Qd7 {[%clk
0:32:06]} 20. Rc5 {[%clk 1:10:50]} 20... Rac8 {[%clk 0:26:12]} 21. e4 {[%clk
1:09:16]} 21... Nf4 {[%clk 0:25:46]} 22. Rxg5 {[%clk 1:08:49]} 1-0

[Variant "Standard"]
[Site "Europe Echecs"]

[Event "Championnat du monde jeunes U10"]
[Date "2024.11.15"]
[White "Ismailov, Omarbek"]
[Black "Gusev, Daniil Den"]
[WhiteElo "1625"]
[BlackElo "1863"]
[Round "1.32"]
[Result "1-0"]
[TimeControl "5400+30"]

1. d4 {[%clk 1:30:55]} 1... Nf6 {[%clk 1:30:54]} 2. Bf4 {[%clk 1:31:13]} 2... g6
{[%clk 1:31:06]} 3. e3 {[%clk 1:31:31]} 3... d6 {[%clk 1:31:15]} 4. Nf3 {[%clk
1:31:41]} 4... Nh5 {[%clk 1:31:18]} 5. Bg5 {[%clk 1:30:47]} 5... h6 {[%clk
1:31:31]} 6. Bh4 {[%clk 1:30:22]} 6... g5 {[%clk 1:31:16]} 7. Nfd2 {[%clk
1:26:54]} 7... Ng7 {[%clk 1:31:00]} 8. Bg3 {[%clk 1:27:16]} 8... Nf5 {[%clk
1:31:16]} 9. Bd3 {[%clk 1:25:28]} 9... e6 {[%clk 1:30:23]} 10. c4 {[%clk
1:22:23]} 10... Bg7 {[%clk 1:30:07]} 11. Nc3 {[%clk 1:22:38]} 11... Nxg3 {[%clk
1:28:59]} 12. hxg3 {[%clk 1:22:58]} 12... Qe7 {[%clk 1:25:38]} 13. Qc2 {[%clk
1:17:22]} 13... c5 {[%clk 1:24:17]} 14. d5 {[%clk 1:09:44]} 14... O-O {[%clk
1:15:26]} 15. O-O-O {[%clk 1:01:49]} 15... Na6 {[%clk 1:14:03]} 16. a3 {[%clk
1:00:07]} 16... Nc7 {[%clk 1:14:11]} 17. dxe6 {[%clk 0:50:28]} 17... Bxe6 {[%clk
1:13:36]} 18. f4 {[%clk 0:50:42]} 18... Rfd8 {[%clk 0:55:40]} 19. Nf3 {[%clk
0:45:24]} 19... a6 {[%clk 0:49:51]} 20. fxg5 {[%clk 0:44:46]} 20... b5 {[%clk
0:48:59]} 21. gxh6 {[%clk 0:45:04]} 21... Bh8 {[%clk 0:49:19]} 22. Rh5 {[%clk
0:39:13]} 22... Kf8 {[%clk 0:22:44]} 23. Rg5 {[%clk 0:35:54]} 23... bxc4 {[%clk
0:21:17]} 24. Bh7 {[%clk 0:36:03]} 24... f6 {[%clk 0:20:30]} 25. Rh5 {[%clk
0:35:09]} 25... Bf7 {[%clk 0:12:10]} 26. Bg6 {[%clk 0:34:31]} 26... d5 {[%clk
0:06:24]} 27. Bxf7 {[%clk 0:34:31]} 27... Qxf7 {[%clk 0:06:48]} 28. Rf5 {[%clk
0:34:14]} 28... Rd7 {[%clk 0:04:43]} 29. Ne5 {[%clk 0:34:25]} 29... fxe5 {[%clk
0:03:34]} 30. Rxf7+ {[%clk 0:34:48]} 30... Kxf7 {[%clk 0:03:59]} 31. Rf1+ {[%clk
0:34:52]} 31... Ke7 {[%clk 0:01:18]} 32. Qh7+ {[%clk 0:35:05]} 32... Kd6 {[%clk
0:01:36]} 33. Qg6+ {[%clk 0:35:23]} 33... Ne6 {[%clk 0:02:02]} 34. Nxd5 {[%clk
0:34:51]} 34... Kxd5 {[%clk 0:02:19]} 35. Rd1+ {[%clk 0:35:09]} 35... Nd4 {[%clk
0:02:06]} 36. e4# {[%clk 0:35:32]} 1-0

[Variant "Standard"]
[Site "Europe Echecs"]

[Event "Championnat du monde jeunes U10"]
[Date "2024.11.15"]
[White "Wang, Rocky"]
[Black "Kalinichenko, German Yu"]
[WhiteElo "1853"]
[BlackElo "1621"]
[Round "1.33"]
[Result "1-0"]
[TimeControl "5400+30"]

1. e4 {[%clk 1:30:56]} 1... e5 {[%clk 1:30:44]} 2. Nf3 {[%clk 1:31:01]} 2... Nc6
{[%clk 1:30:58]} 3. Bb5 {[%clk 1:30:53]} 3... a6 {[%clk 1:30:58]} 4. Ba4 {[%clk
1:30:51]} 4... Nf6 {[%clk 1:30:55]} 5. O-O {[%clk 1:30:34]} 5... Be7 {[%clk
1:31:18]} 6. Re1 {[%clk 1:30:11]} 6... b5 {[%clk 1:31:16]} 7. Bb3 {[%clk
1:30:36]} 7... O-O {[%clk 1:31:26]} 8. c3 {[%clk 1:29:22]} 8... d5 {[%clk
1:31:34]} 9. exd5 {[%clk 1:29:06]} 9... Nxd5 {[%clk 1:31:58]} 10. Nxe5 {[%clk
1:29:26]} 10... Nxe5 {[%clk 1:32:24]} 11. Rxe5 {[%clk 1:29:48]} 11... c6 {[%clk
1:32:50]} 12. d3 {[%clk 1:28:52]} 12... Bd6 {[%clk 1:33:15]} 13. Re1 {[%clk
1:29:09]} 13... Qh4 {[%clk 1:33:21]} 14. g3 {[%clk 1:29:31]} 14... Qh3 {[%clk
1:33:47]} 15. Re4 {[%clk 1:29:57]} 15... g5 {[%clk 1:34:13]} 16. Bxg5 {[%clk
1:23:14]} 16... Bd7 {[%clk 1:30:36]} 17. Nd2 {[%clk 1:15:52]} 17... Rfe8 {[%clk
1:30:15]} 18. Qf3 {[%clk 1:11:20]} 18... Rxe4 {[%clk 1:29:11]} 19. dxe4 {[%clk
1:08:04]} 19... Bg4 {[%clk 1:28:44]} 20. Qd3 {[%clk 1:04:19]} 20... Nf4 {[%clk
1:28:14]} 21. Bxf4 {[%clk 1:01:14]} 21... Bxf4 {[%clk 1:27:45]} 22. f3 {[%clk
1:00:38]} 22... Bxd2 {[%clk 1:26:48]} 23. Qxd2 {[%clk 0:54:18]} 23... Bxf3
{[%clk 1:26:12]} 24. Rf1 {[%clk 0:52:39]} 24... Bh5 {[%clk 1:25:18]} 25. Qg5+
{[%clk 0:52:53]} 25... Kf8 {[%clk 1:18:58]} 26. Qh6+ {[%clk 0:52:55]} 26... Ke8
{[%clk 1:17:16]} 27. Rxf7 {[%clk 0:51:34]} 1-0

[Variant "Standard"]
[Site "Europe Echecs"]

[Event "Championnat du monde jeunes U10"]
[Date "2024.11.15"]
[White "Vydra, David"]
[Black "Melkonyan, Davit"]
[WhiteElo "1615"]
[BlackElo "1842"]
[Round "1.34"]
[Result "0-1"]
[TimeControl "5400+30"]

1. e4 {[%clk 1:30:48]} 1... e5 {[%clk 1:30:54]} 2. Nf3 {[%clk 1:31:00]} 2... Nc6
{[%clk 1:31:17]} 3. Bb5 {[%clk 1:30:24]} 3... a6 {[%clk 1:31:02]} 4. Ba4 {[%clk
1:30:21]} 4... Nf6 {[%clk 1:30:45]} 5. O-O {[%clk 1:29:18]} 5... b5 {[%clk
1:30:23]} 6. Bb3 {[%clk 1:27:35]} 6... Bc5 {[%clk 1:30:11]} 7. a4 {[%clk
1:24:27]} 7... Bb7 {[%clk 1:25:43]} 8. c3 {[%clk 1:20:58]} 8... d6 {[%clk
1:24:55]} 9. d4 {[%clk 1:17:39]} 9... Bb6 {[%clk 1:24:49]} 10. Be3 {[%clk
0:57:46]} 10... Nxe4 {[%clk 1:10:04]} 11. d5 {[%clk 0:41:16]} 11... Ne7 {[%clk
1:08:47]} 12. axb5 {[%clk 0:37:08]} 12... axb5 {[%clk 1:06:55]} 13. Rxa8 {[%clk
0:34:25]} 13... Qxa8 14. Qd3 {[%clk 0:31:24]} 14... Nxd5 {[%clk 0:56:03]} 15.
Bxd5 {[%clk 0:25:11]} 15... Bxd5 {[%clk 0:56:18]} 16. Qxb5+ {[%clk 0:21:44]}
16... Bc6 {[%clk 0:55:48]} 17. Qd3 {[%clk 0:21:13]} 17... Qb7 {[%clk 0:52:13]}
18. Rd1 {[%clk 0:18:15]} 18... O-O {[%clk 0:50:58]} 19. b4 {[%clk 0:16:02]}
19... Nxf2 {[%clk 0:47:02]} 20. Bxf2 {[%clk 0:15:39]} 20... e4 {[%clk 0:47:26]}
21. Qc4 {[%clk 0:15:08]} 21... exf3 {[%clk 0:47:17]} 22. b5 {[%clk 0:14:52]}
22... Bxb5 {[%clk 0:46:43]} 23. Qf4 {[%clk 0:13:59]} 23... Bxf2+ {[%clk
0:46:44]} 24. Kxf2 {[%clk 0:14:25]} 24... Be2 {[%clk 0:46:47]} 25. Re1 {[%clk
0:14:34]} 25... Qb6+ {[%clk 0:46:22]} 26. Kg3 {[%clk 0:13:53]} 26... fxg2 {[%clk
0:46:17]} 27. Kxg2 {[%clk 0:14:15]} 27... Qc6+ {[%clk 0:45:57]} 28. Kf2 {[%clk
0:14:08]} 28... Bd3 {[%clk 0:46:18]} 29. Qd2 {[%clk 0:13:40]} 29... Qb6+ {[%clk
0:46:33]} 30. Kg2 {[%clk 0:13:57]} 30... Bxb1 {[%clk 0:46:58]} 0-1

[Variant "Standard"]
[Site "Europe Echecs"]